bitfinex/quotes_ETHUSD_20211001
["timestamp","ask_amount","ask_price","bid_price","bid_amount"]
[1633111372765,0.06339842,3275.5,3275.4,6.29566315]
[1633111372963,0.06339842,3275.5,3275.4,6.26011]
[1633111373365,0.06339842,3275.5,3275.4,1.684]
[1633111373666,0.003,3275.5,3275.4,1.684]
[1633111373870,0.003,3275.5,3275.4,1.91138965]
[1633111374067,0.003,3275.5,3275.4,1.62738965]
[1633111374265,0.003,3275.5,3275.4,1.81138965]
[1633111375265,1.06431586,3275.5,3275.4,1.584]
[1633111375468,0.06339856,3275.5,3275.4,1.584]
[1633111376868,13.81339856,3275.5,3275.4,1.521]
[1633111377169,0.98534007,3275.3,3274.5,0.003]
[1633111377368,0.02409244,3274.7,3274.5,0.003]
[1633111377567,0.02409244,3274.7,3274.1,3.684]
[1633111377568,0.9344896,3274.6,3274.2,0.003]
[1633111377771,0.92787763,3274.4,3274.2,0.003]
[1633111378770,18.33031,3274.3,3273.9,0.003]
[1633111378974,0.02540829,3274.0,3273.5,0.003]
[1633111379169,0.02540829,3274.0,3273.0,0.006]
[1633111379370,0.02540829,3274.0,3272.9,3.483]
[1633111379371,13.75,3273.9,3272.9,3.483]
[1633111379571,13.75,3273.9,3272.8,0.003]
[1633111379772,4.58178,3273.3,3273.0,0.003]
[1633111379972,1.10601604,3273.2,3273.0,0.003]
[1633111380170,1.10601604,3273.2,3272.7,0.184]
[1633111380171,11.3422432,3273.1,3272.8,0.003]
[1633111380472,1.10601604,3273.2,3272.8,0.003]
[1633111380870,0.05979435,3273.1,3272.8,0.003]
[1633111381671,0.05979435,3273.1,3272.9,0.184]
[1633111381872,0.05979435,3273.1,3272.9,4.76439]
[1633111382071,0.05979435,3273.1,3273.0,0.003]
[1633111382340,0.05979435,3273.1,3273.0,0.187]
[1633111382472,0.05979435,3273.1,3273.0,2.06803796]
[1633111382873,0.05979435,3273.1,3273.0,15.37324796]
[1633111383071,0.05979435,3273.1,3273.0,9.28324796]
[1633111383873,0.05979435,3273.1,3273.0,9.31689834]
[1633111384673,0.003,3274.0,3273.0,9.31689834]
[1633111384874,0.003,3274.0,3273.8,0.079913]
[1633111385074,0.003,3274.0,3273.9,5.63726239]
[1633111385678,0.003,3274.5,3274.1,1.3696]
[1633111385875,0.003,3274.5,3274.4,7.079913]
[1633111386075,0.003,3275.0,3274.5,7.9]
[1633111386280,0.003,3275.0,3274.7,4.57643]
[1633111386473,0.003,3275.0,3274.8,18.80918944]
[1633111386677,0.003,3275.0,3274.8,18.84519897]
[1633111386874,0.003,3275.0,3274.9,13.40367906]
[1633111387074,0.003,3275.0,3274.9,29.60148375]
[1633111387276,2.463,3276.0,3275.4,10.17299646]
[1633111387475,2.463,3276.0,3275.4,20.72614174]
[1633111387676,2.46,3276.0,3275.4,21.57173203]
[1633111387875,2.4555122,3276.0,3275.5,3.29008339]
[1633111388076,2.46,3276.3,3275.9,0.079913]
[1633111388275,2.46,3276.3,3276.1,1.73953921]
[1633111388477,2.46,3276.3,3276.2,0.147]
[1633111389379,2.46,3276.3,3276.2,1.441]
[1633111389576,0.003,3276.5,3276.2,1.47600783]
[1633111389775,0.003,3276.5,3276.2,0.147]
[1633111390274,0.003,3276.5,3276.3,0.22707211]
[1633111390479,0.003,3276.5,3276.4,0.147]
[1633111391880,0.06365771,3276.5,3276.4,0.147]
[1633111394882,0.06452755,3276.5,3276.4,0.147]
[1633111395479,1.1663807,3276.5,3275.5,0.003]
[1633111395678,0.00386984,3276.5,3275.6,3.5]
[1633111395878,0.00386984,3276.5,3275.7,4.72356]
[1633111396680,0.93529326,3276.4,3275.7,4.72356]
[1633111397084,0.00386984,3276.5,3275.7,4.72356]
[1633111397346,0.86953317,3276.1,3275.7,4.72356]
[1633111397481,0.06055931,3276.4,3275.7,4.72356]
[1633111397883,0.06055931,3276.4,3276.1,4.57609]
[1633111398280,1.14642155,3276.4,3276.1,4.57609]
[1633111398884,0.06055931,3276.4,3276.2,3.34937564]
[1633111399082,0.06055931,3276.4,3276.3,0.079913]
[1633111399283,0.06055931,3276.4,3276.3,0.226913]
[1633111399483,0.06055931,3276.4,3276.3,0.147]
[1633111399881,1.0830424,3276.4,3276.3,0.147]
[1633111400084,1.0830424,3276.4,3276.3,4.72192]
[1633111400884,1.0830424,3276.4,3275.8,0.147]
[1633111401082,1.0830424,3276.4,3275.8,3.5]
[1633111401284,1.02248309,3276.4,3275.5,0.003]
[1633111401483,0.02904364,3276.5,3275.5,0.003]
[1633111401883,0.02904364,3276.5,3275.6,0.72372902]
[1633111402482,1.01050239,3276.0,3275.6,0.72372902]
[1633111402681,0.08960309,3276.5,3275.6,0.72372902]
[1633111403684,0.93599416,3276.0,3275.6,0.72372902]
[1633111403887,0.93599416,3276.0,3275.5,0.003]
[1633111404888,0.93599416,3276.0,3275.5,0.75319026]
[1633111405083,0.06442929,3276.5,3275.5,0.75319026]
[1633111405283,0.06355945,3276.5,3275.5,0.75319026]
[1633111405683,0.06355945,3276.5,3275.5,0.90019026]
[1633111406085,0.80593623,3276.3,3275.5,0.90019026]
[1633111406384,0.80593623,3276.3,3275.5,0.15]
[1633111406783,0.80593623,3276.3,3275.6,0.22723921]
[1633111407182,1.15917207,3276.2,3275.6,0.22723921]
[1633111407383,1.04279299,3275.7,3275.6,0.22723921]
[1633111407589,0.71113506,3275.8,3275.6,0.22723921]
[1633111407784,0.003,3276.5,3275.6,0.22723921]
[1633111408183,0.003,3276.5,3275.5,0.15]
[1633111408386,0.06355959,3276.5,3275.5,0.15]
[1633111408785,0.8737011,3276.1,3275.5,0.15]
[1633111409188,0.8737011,3276.1,3275.8,4.57674]
[1633111410189,1.06565333,3276.4,3275.8,4.57674]
[1633111410986,1.06565333,3276.4,3275.5,0.15]
[1633111411185,0.85326272,3276.1,3275.5,0.15]
[1633111411986,1.06565333,3276.4,3275.5,0.15]
[1633111412387,1.06565333,3276.4,3275.6,0.22725592]
[1633111412989,0.84814359,3276.2,3275.6,0.22725592]
[1633111413588,0.84814359,3276.2,3275.9,6.10189]
[1633111413788,0.90866636,3276.2,3275.9,6.10189]
[1633111414188,0.06052277,3276.2,3275.9,6.10189]
[1633111415990,0.06133048,3276.2,3275.9,6.10189]
[1633111416791,0.06133048,3276.2,3275.9,7.60189]
[1633111416991,0.06133048,3276.2,3275.9,10.65264]
[1633111417394,0.06133048,3276.2,3276.0,6.10177]
[1633111417791,0.00080771,3276.2,3276.0,6.32894236]
[1633111418193,2.69710011,3276.0,3275.5,0.003]
[1633111418670,7.27511011,3276.0,3275.5,0.003]
[1633111419070,1.42299646,3275.4,3275.0,0.003]
[1633111419276,1.05887233,3275.3,3275.0,0.003]
[1633111419471,1.08433167,3275.3,3274.5,0.003]
[1633111419670,1.08433167,3275.3,3274.3,0.003]
[1633111419671,4.57954,3274.9,3274.3,0.003]
[1633111419872,4.57954,3274.9,3273.8,0.006]
[1633111420071,0.7604117,3274.2,3273.8,0.006]
[1633111420270,6.1071755,3274.6,3273.6,0.97446904]
[1633111420470,4.72092509,3274.9,3273.7,0.006]
[1633111420872,6.10735,3274.6,3273.7,0.006]
[1633111421070,6.10735,3274.6,3273.4,0.009]
[1633111421471,9.16085,3274.6,3273.4,0.009]
[1633111421673,0.91433336,3273.9,3273.5,0.91983306]
[1633111421873,0.91433336,3273.9,3273.4,0.009]
[1633111422071,0.91433336,3273.9,3273.6,0.006]
[1633111422474,3.59288693,3273.8,3273.6,0.006]
[1633111422673,0.75986683,3274.1,3272.7,0.012]
[1633111422871,3.0538708,3274.3,3273.0,4.58965]
[1633111422872,0.84692116,3273.5,3273.0,4.58965]
[1633111423072,0.84692116,3273.5,3273.0,4.58065]
[1633111423275,0.84692116,3273.5,3273.1,0.12345584]
[1633111423670,7.01227539,3274.2,3273.2,0.009]
[1633111423873,1.07937811,3273.3,3273.2,0.009]
[1633111424075,3.76754431,3274.1,3273.2,0.009]
[1633111424470,9.16199,3274.2,3273.2,0.009]
[1633111424672,0.77515564,3273.8,3273.2,0.009]
[1633111425072,1.16792285,3273.2,3273.0,0.012]
[1633111425878,3.48597164,3273.7,3272.7,0.012]
[1633111426073,0.77515564,3273.8,3272.7,0.012]
[1633111426278,3.72808057,3274.0,3273.2,1.294]
[1633111426279,0.17354208,3274.0,3273.2,1.294]
[1633111426477,0.17354208,3274.0,3273.7,0.079913]
[1633111426678,0.17354208,3274.0,3273.8,0.147]
[1633111426877,0.17354208,3274.0,3273.8,2.92501773]
[1633111427175,0.17354208,3274.0,3273.9,0.006]
[1633111427376,1.05538088,3274.0,3273.9,0.006]
[1633111427978,0.94945089,3273.9,3273.5,0.003]
[1633111428382,0.94945089,3273.9,3273.0,0.003]
[1633111428579,0.94945089,3273.9,3272.5,0.003]
[1633111428580,15.02590345,3273.6,3272.5,0.006]
[1633111428782,15.02590345,3273.6,3272.0,0.003]
[1633111428783,1.68284937,3272.8,3272.0,0.003]
[1633111428978,1.68284937,3272.8,3271.2,2.46]
[1633111428979,13.77456308,3272.1,3271.8,0.003]
[1633111429178,4.69336715,3272.0,3271.3,0.006]
[1633111429378,0.7287,3271.6,3271.3,0.006]
[1633111429979,0.7287,3271.6,3271.4,1.294]
[1633111430180,0.17299899,3271.5,3271.3,0.153]
[1633111430380,0.17299899,3271.5,3271.3,0.147]
[1633111430579,0.17299899,3271.5,3271.4,4.58863]
[1633111430778,0.17299899,3271.5,3271.4,0.006]
[1633111430984,0.98950848,3271.5,3271.4,0.006]
[1633111431379,0.98950848,3271.5,3271.3,0.006]
[1633111431778,2.02038871,3271.5,3271.3,0.006]
[1633111431980,0.17299899,3271.5,3271.3,0.006]
[1633111432978,0.92805993,3271.5,3271.3,0.006]
[1633111434181,0.90506094,3271.5,3271.3,0.006]
[1633111434380,20.76856094,3271.5,3271.4,0.19014251]
[1633111434581,13.75,3271.4,3271.3,0.006]
[1633111434779,13.75,3271.4,3270.4,0.006]
[1633111434979,13.75,3271.4,3270.4,0.012]
[1633111435178,0.73911406,3270.6,3270.4,0.012]
[1633111435382,6.1135,3271.5,3270.4,0.012]
[1633111435781,0.19283558,3270.5,3270.4,0.012]
[1633111435979,0.19283558,3270.5,3270.4,1.306]
[1633111436185,1.96120023,3271.8,3270.9,1.30716442]
[1633111436380,0.9073439,3271.4,3270.9,1.30716442]
[1633111436580,0.9073439,3271.4,3271.0,0.009]
[1633111438281,1.21239262,3271.3,3271.0,0.009]
[1633111438485,10.38384002,3271.3,3271.0,0.009]
[1633111438680,13.86887762,3271.3,3271.0,0.009]
[1633111438885,13.86887762,3271.3,3270.1,0.147]
[1633111438886,13.75,3270.8,3269.7,0.147]
[1633111439081,13.75,3270.8,3269.7,0.003]
[1633111439082,5.01312814,3270.7,3269.7,0.003]
[1633111439281,1.20206095,3270.6,3270.1,2.46]
[1633111439482,5.01312814,3270.7,3270.1,2.46]
[1633111439483,2.08543562,3270.5,3270.1,2.46]
[1633111439881,2.08543562,3270.5,3270.2,0.19185786]
[1633111440081,1.08622037,3270.5,3270.2,0.19185786]
[1633111440283,1.99789986,3270.9,3270.2,0.19185786]
[1633111440882,6.58313986,3270.9,3270.2,0.19185786]
[1633111441280,0.09643029,3270.8,3270.1,2.46]
[1633111441680,3.0572667,3270.7,3270.1,2.46]
[1633111441880,1.68998523,3270.6,3270.1,2.46]
[1633111442880,1.68998523,3270.6,3270.1,2.41]
[1633111443080,1.68998523,3270.6,3270.0,2.46]
[1633111443483,4.74732453,3270.6,3270.0,2.463]
[1633111444085,1.68998523,3270.6,3270.0,2.463]
[1633111444882,0.88960562,3270.6,3270.0,3.39622848]
[1633111445283,0.88960562,3270.6,3270.0,0.93622848]
[1633111445483,0.003,3271.0,3270.1,0.19187463]
[1633111445686,0.003,3271.0,3270.2,0.147]
[1633111445887,0.95918116,3270.9,3270.2,0.147]
[1633111446689,1.01803628,3270.8,3270.2,0.147]
[1633111446886,1.01803628,3270.8,3270.0,1.503]
[1633111446887,3.36626275,3270.7,3270.0,1.503]
[1633111447488,3.36626275,3270.7,3270.0,0.003]
[1633111447685,0.95508396,3270.2,3270.0,0.003]
[1633111447884,1.079912,3269.8,3269.7,0.003]
[1633111448086,0.95508396,3270.2,3269.7,0.003]
[1633111449686,5.54104396,3270.2,3269.7,0.003]
[1633111450686,0.90049001,3270.0,3269.7,0.003]
[1633111450890,0.95508396,3270.2,3269.7,0.003]
[1633111451487,3.0574919,3270.4,3269.8,0.19199203]
[1633111451897,3.0574919,3270.4,3269.9,0.003]
[1633111452088,5.92620965,3270.0,3269.9,0.003]
[1633111452291,1.07620965,3270.0,3269.9,0.003]
[1633111452690,1.07620965,3270.0,3269.7,0.003]
[1633111453490,4.58651,3269.9,3269.7,0.003]
[1633111453692,1.07620965,3270.0,3269.7,0.003]
[1633111454891,0.82575165,3269.6,3269.3,0.003]
[1633111455092,4.3588021,3269.6,3269.3,0.003]
[1633111455293,4.3588021,3269.6,3268.7,2.46]
[1633111455294,0.98045891,3268.9,3268.8,0.006]
[1633111455493,3.90028726,3269.5,3268.8,0.006]
[1633111455692,3.88409165,3269.6,3268.8,0.006]
[1633111455893,3.50962403,3269.5,3268.8,0.006]
[1633111456093,13.75,3269.5,3268.7,3.23141981]
[1633111456497,0.97932871,3269.1,3268.7,3.23141981]
[1633111456895,0.97932871,3269.1,3268.7,2.566]
[1633111457101,0.97932871,3269.1,3268.8,0.1923444]
[1633111457697,0.97932871,3269.1,3268.7,0.2]
[1633111457895,0.09603496,3269.0,3268.7,0.2]
[1633111458095,0.09603496,3269.0,3268.8,1.294]
[1633111458297,0.09603496,3269.0,3268.8,0.147]
[1633111459094,0.09603496,3269.0,3268.9,0.82626196]
[1633111459296,0.09603496,3269.0,3268.9,2.12026196]
[1633111459703,0.09603496,3269.0,3268.9,2.26726196]
[1633111459899,0.09603496,3269.0,3268.9,3.44986196]
[1633111460095,0.09603496,3269.0,3268.9,6.94986196]
[1633111460695,0.09603496,3269.0,3268.9,3.44986196]
[1633111461295,0.09603496,3269.0,3268.9,2.26726196]
[1633111462300,0.09603496,3269.0,3268.9,0.97326196]
[1633111462495,0.003,3269.5,3269.1,4.58625]
[1633111463296,0.0961217,3269.4,3269.1,4.58625]
[1633111463498,0.0961217,3269.4,3269.3,4.58548]
[1633111463696,0.0961217,3269.4,3269.3,4.76948]
[1633111464697,0.82575165,3269.6,3269.3,6.06348]
[1633111464698,0.77487335,3269.6,3269.3,6.06348]
[1633111464901,0.77487335,3269.6,3269.3,4.76948]
[1633111465502,0.77487335,3269.6,3269.3,4.843083]
[1633111465701,0.77487335,3269.6,3269.4,1.294]
[1633111465900,0.77487335,3269.6,3269.5,0.184]
[1633111468702,0.82300856,3269.6,3269.5,0.184]
[1633111470110,0.003,3270.0,3269.7,3.05649]
[1633111470305,0.003,3270.0,3269.9,5.979913]
[1633111470505,0.003,3270.0,3269.9,0.263913]
[1633111471105,0.003,3270.0,3269.9,0.184]
[1633111471703,0.003,3270.0,3269.9,1.15204897]
[1633111473304,0.003,3270.0,3269.9,2.44604897]
[1633111473504,0.003,3270.0,3269.9,2.79008246]
[1633111474307,0.02715432,3270.0,3269.9,4.18636197]
[1633111475105,0.02715432,3270.0,3269.9,2.89236197]
[1633111475310,0.02715432,3270.0,3269.9,4.18636197]
[1633111475911,0.02715432,3270.0,3269.9,2.89236197]
[1633111476107,0.02715432,3270.0,3269.9,1.15204897]
[1633111476306,0.02715432,3270.0,3269.9,1.22644297]
[1633111476509,0.02715432,3270.0,3269.9,2.52044297]
[1633111477307,0.02715432,3270.0,3269.9,2.72044297]
[1633111477509,0.01666572,3270.0,3269.9,2.72044297]
[1633111477707,0.01666572,3270.0,3269.9,2.73964297]
[1633111477912,0.01666572,3270.0,3269.9,1.37124897]
[1633111478911,0.003,3270.5,3269.9,1.37124897]
[1633111479107,0.003,3270.5,3269.9,1.63911376]
[1633111479308,0.003,3270.5,3270.0,3.05622]
[1633111479507,0.003,3270.5,3270.1,0.184]
[1633111479908,0.02349671,3270.5,3270.1,0.184]
[1633111480307,0.02349671,3270.5,3270.2,4.58404]
[1633111480512,0.02349671,3270.5,3270.3,0.184]
[1633111483314,0.02349671,3270.5,3270.3,4.76828]
[1633111484514,0.003,3270.5,3270.4,15.11169707]
[1633111484717,0.003,3270.5,3270.4,37.84453207]
[1633111484913,0.003,3270.5,3270.4,37.8833619]
[1633111485115,0.003,3270.5,3270.4,24.3333619]
[1633111485316,0.0235463,3270.5,3270.4,24.06566483]
[1633111485517,0.003,3271.0,3270.5,13.75]
[1633111485721,0.003,3271.0,3270.9,4.669913]
[1633111485917,0.003,3271.0,3270.9,7.42326227]
[1633111486120,0.003,3271.0,3270.9,6.5381]
[1633111486317,0.003,3271.0,3270.9,1.9481]
[1633111487118,0.98900773,3271.0,3270.9,1.9481]
[1633111487381,0.98900773,3271.0,3270.9,0.184]
[1633111490017,0.98900773,3271.0,3270.9,0.46180256]
[1633111490822,1.00517717,3271.0,3270.9,0.184]
[1633111495422,0.98900773,3271.0,3270.9,0.184]
[1633111495619,0.98900773,3271.0,3270.9,0.46180256]
[1633111496024,2.20156652,3271.0,3270.9,0.46180256]
[1633111496219,2.20156652,3271.0,3270.9,0.184]
[1633111496419,2.21773596,3271.0,3270.9,0.184]
[1633111497419,1.00517717,3271.0,3270.9,0.184]
[1633111497623,0.01916944,3271.0,3270.9,0.384]
[1633111501020,0.003,3271.0,3270.9,0.384]
[1633111501224,0.003,3271.0,3270.9,0.66180256]
[1633111503423,0.003,3271.0,3270.9,0.384]
[1633111503623,0.01916944,3271.0,3270.9,0.384]
[1633111506683,0.003,3271.0,3270.9,0.66180256]
[1633111507684,0.003,3271.0,3270.9,2.02777056]
[1633111507886,0.003,3271.0,3270.9,6.65057621]
[1633111508085,0.003,3271.5,3271.1,0.22725449]
[1633111508285,0.003,3272.0,3271.4,0.079913]
[1633111508489,0.003,3272.0,3271.5,0.184]
[1633111508689,0.003,3272.0,3271.7,4.5815]
[1633111508890,0.003,3272.0,3271.8,0.184]
[1633111509094,0.003,3272.0,3271.9,0.079913]
[1633111509289,0.01916523,3272.0,3271.9,0.263913]
[1633111509891,0.01916523,3272.0,3271.9,8.73278744]
[1633111510888,0.003,3272.5,3271.9,8.73278744]
[1633111511091,0.003,3272.5,3272.0,3.05393]
[1633111511290,0.003,3272.5,3272.2,4.58089]
[1633111511489,0.003,3272.5,3272.3,0.184]
[1633111514293,0.003,3272.5,3272.3,4.76576]
[1633111516901,0.003,3272.5,3272.3,0.184]
[1633111517496,0.003,3272.5,3272.4,0.28539925]
[1633111517699,0.003,3272.5,3272.4,0.46939925]
[1633111517896,0.89208272,3272.5,3272.4,0.46939925]
[1633111518500,0.89208272,3272.5,3272.4,1.96939925]
[1633111520297,0.003,3272.5,3272.4,1.86939925]
[1633111520499,0.003,3272.5,3272.4,1.68539925]
[1633111521299,5.503,3272.5,3272.4,1.68539925]
[1633111521499,6.5192437,3272.5,3272.4,1.68539925]
[1633111522299,11.1022637,3272.5,3272.4,1.68539925]
[1633111522499,5.6022637,3272.5,3272.4,1.68539925]
[1633111523201,1.0192437,3272.5,3272.4,1.7353825]
[1633111525301,5.6192437,3272.5,3272.4,1.7353825]
[1633111525502,1.0192437,3272.5,3272.4,1.7353825]
[1633111528101,5.6021337,3272.5,3272.4,1.7353825]
[1633111528302,9.2021337,3272.5,3272.4,1.7353825]
[1633111529303,13.0521337,3272.5,3272.4,1.7353825]
[1633111531706,0.0498175,3272.4,3271.5,0.003]
[1633111531905,15.0,3272.0,3271.5,0.003]
[1633111532105,15.0,3272.0,3271.3,0.003]
[1633111532304,3.0560725,3272.1,3271.1,0.003]
[1633111532509,4.58443,3271.5,3270.8,0.006]
[1633111532704,1.13696058,3270.9,3270.8,0.91501857]
[1633111532907,4.58443,3271.5,3270.8,0.91501857]
[1633111533106,3.05629,3271.7,3270.8,0.91501857]
[1633111533305,3.05629,3271.7,3270.9,0.006]
[1633111533903,1.09205619,3271.2,3270.9,0.006]
[1633111535109,1.26208757,3271.2,3270.9,0.006]
[1633111537105,0.17003138,3271.2,3270.9,0.006]
[1633111538914,0.17003138,3271.2,3270.9,1.506]
[1633111539310,0.17003138,3271.2,3271.0,0.006]
[1633111540107,0.17003138,3271.2,3271.1,0.84278825]
[1633111540506,0.17003138,3271.2,3271.1,0.84578825]
[1633111540907,0.17003138,3271.2,3271.1,1.02978825]
[1633111541307,0.17003138,3271.2,3271.1,0.187]
[1633111543108,1.19351934,3271.2,3271.1,0.187]
[1633111543709,0.17003138,3271.2,3271.1,0.187]
[1633111548714,0.17003138,3271.2,3271.1,0.003]
[1633111548914,3.98765431,3271.6,3271.2,0.11811011]
[1633111549315,14.23457,3271.4,3271.3,0.003]
[1633111549517,4.58457,3271.4,3271.3,0.003]
[1633111549916,3.98765431,3271.6,3271.3,0.003]
[1633111550721,4.58442,3271.5,3271.3,0.003]
[1633111554320,4.58442,3271.5,3271.4,0.11802632]
[1633111554720,3.98765431,3271.6,3271.4,0.12102632]
[1633111555121,3.98765431,3271.6,3271.5,0.003]
[1633111558526,0.93125431,3271.6,3271.5,0.003]
[1633111558923,6.11253,3271.8,3271.5,0.003]
[1633111558924,4.58369,3271.8,3271.5,0.003]
[1633111559397,0.9447368,3271.7,3271.5,0.003]
[1633111559524,0.9447368,3271.7,3271.6,0.11795929]
[1633111559924,4.6447368,3271.7,3271.6,0.11795929]
[1633111560123,0.9447368,3271.7,3271.6,0.11795929]
[1633111560325,2.0610961,3271.7,3271.6,0.11795929]
[1633111560924,3.05619,3271.6,3271.1,0.003]
[1633111561129,4.58433,3271.4,3271.1,0.003]
[1633111561527,7.04381851,3271.2,3271.1,0.003]
[1633111561725,1.04381851,3271.2,3271.1,0.003]
[1633111564126,4.58409,3271.5,3271.1,0.003]
[1633111564926,0.9447368,3271.7,3271.2,0.11805983]
[1633111565127,5.5286768,3271.7,3271.2,0.11805983]
[1633111565327,5.5286768,3271.7,3271.3,0.003]
[1633111565727,1.0333831,3271.6,3271.3,0.003]
[1633111566432,4.58434,3271.5,3271.3,0.003]
[1633111566826,4.58434,3271.5,3271.1,0.003]
[1633111568427,4.58434,3271.5,3271.1,1.503]
[1633111568828,4.58434,3271.5,3271.2,0.003]
[1633111569228,0.17013103,3271.6,3271.2,3.05865]
[1633111569430,0.17013103,3271.6,3271.4,0.079913]
[1633111569628,0.17013103,3271.6,3271.4,0.263913]
[1633111569827,0.17013103,3271.6,3271.5,0.003]
[1633111570231,33.635,3272.5,3271.5,6.06388]
[1633111570431,33.635,3272.5,3271.7,0.72441558]
[1633111570432,10.8117,3272.5,3271.7,0.72441558]
[1633111570627,10.8117,3272.5,3271.8,0.184]
[1633111570628,0.003,3272.5,3271.8,0.184]
[1633111571396,4.58382,3272.1,3271.8,0.184]
[1633111571931,0.17024234,3272.0,3271.8,0.184]
[1633111572128,9.11636281,3271.9,3271.8,0.184]
[1633111572329,0.96636281,3271.9,3271.8,0.184]
[1633111572533,5.54994281,3271.9,3271.8,0.184]
[1633111574529,0.17024234,3272.0,3271.8,1.478]
[1633111574730,0.17024234,3272.0,3271.9,0.079913]
[1633111575131,0.17024234,3272.0,3271.8,0.184]
[1633111575933,3.05555,3272.1,3271.9,0.11785876]
[1633111576936,6.07996445,3272.0,3271.9,0.11785876]
[1633111577132,10.66316445,3272.0,3271.9,0.11785876]
[1633111577399,10.83341928,3272.0,3271.8,0.184]
[1633111577533,5.73341928,3272.0,3271.8,0.184]
[1633111578936,0.17025483,3272.0,3271.9,1.294]
[1633111579136,0.17025483,3272.0,3271.9,2.7003]
[1633111579335,0.17025483,3272.0,3271.9,12.85615684]
[1633111579539,0.17025483,3272.0,3271.9,17.97747688]
[1633111579736,0.17025483,3272.0,3271.9,24.08647688]
[1633111579937,0.003,3273.0,3272.1,1.60864515]
[1633111580136,0.003,3273.0,3272.4,18.1958727]
[1633111580405,0.003,3273.0,3272.5,7.75]
[1633111580536,0.003,3273.0,3272.9,1.8880326]
[1633111580736,0.003,3273.0,3272.9,3.3992326]
[1633111580936,0.003,3273.0,3272.9,8.89081986]
[1633111581335,0.003,3273.0,3272.9,10.18481986]
[1633111581735,0.003,3273.0,3272.9,14.76476986]
[1633111581936,0.003,3273.0,3272.9,15.03046135]
[1633111582145,0.003,3273.0,3272.9,13.26017305]
[1633111582337,0.003,3273.0,3272.9,11.06458579]
[1633111582549,0.003,3273.0,3272.9,6.1390313]
[1633111582937,0.08837449,3273.0,3272.9,6.1390313]
[1633111583539,0.08837449,3273.0,3272.9,6.2110933]
[1633111583939,0.08837449,3273.0,3272.9,1.6210933]
[1633111584137,0.08837449,3273.0,3272.9,0.2938933]
[1633111585337,0.08837449,3273.0,3272.9,0.256062]
[1633111585738,0.08837449,3273.0,3272.9,0.29026228]
[1633111585937,0.08837449,3273.0,3272.9,0.256062]
[1633111586410,0.08837449,3273.0,3272.9,0.29180607]
[1633111586538,0.003,3273.0,3272.9,0.29180607]
[1633111586738,0.003,3273.0,3272.9,0.184]
[1633111587440,0.91973854,3273.4,3272.9,0.184]
[1633111588440,5.58629254,3273.4,3272.9,0.184]
[1633111589039,5.58629254,3273.4,3272.9,1.684]
[1633111589238,5.58629254,3273.4,3272.9,1.71911839]
[1633111590540,5.58629254,3273.4,3272.9,1.684]
[1633111591140,5.58629254,3273.4,3272.9,1.5]
[1633111591141,8.9558757,3273.4,3272.9,1.5]
[1633111591341,5.58629254,3273.4,3272.9,1.5]
[1633111591545,1.5,3272.9,3272.5,0.003]
[1633111591744,1.52531778,3272.9,3272.5,0.003]
[1633111591943,1.42098327,3272.6,3272.3,0.003]
[1633111592547,0.86028335,3272.5,3272.3,0.003]
[1633111592746,14.6016107,3272.4,3272.3,0.003]
[1633111593746,0.8516107,3272.4,3272.3,0.003]
[1633111593946,0.08522663,3272.4,3272.3,0.003]
[1633111595052,1.74050812,3272.4,3272.3,0.003]
[1633111595446,4.99050812,3272.4,3272.3,0.003]
[1633111596447,4.25169558,3272.4,3272.3,0.003]
[1633111597448,5.06676899,3272.4,3272.3,0.003]
[1633111597650,4.98154236,3272.4,3272.3,0.003]
[1633111598447,4.98154236,3272.4,3272.3,1.503]
[1633111599047,1.73154236,3272.4,3272.3,1.503]
[1633111599248,1.81676913,3272.4,3272.3,1.503]
[1633111599447,12.67727622,3272.4,3272.3,1.503]
[1633111599650,15.73335932,3272.4,3272.3,1.503]
[1633111599848,1.81676913,3272.4,3272.3,1.503]
[1633111600853,0.08522677,3272.4,3272.3,1.503]
[1633111601848,1.20682181,3272.4,3272.3,1.503]
[1633111603051,1.12159504,3272.4,3272.3,1.503]
[1633111604914,1.20682195,3272.4,3272.3,1.503]
[1633111607315,11.60682195,3272.4,3272.3,1.453]
[1633111607515,1.20682195,3272.4,3272.3,1.453]
[1633111608521,1.12159504,3272.4,3272.3,1.453]
[1633111610320,1.2068221,3272.4,3272.3,1.453]
[1633111612323,8.7129161,3272.4,3272.3,1.453]
[1633111612526,4.2629161,3272.4,3272.3,1.453]
[1633111614125,4.2629161,3272.4,3272.3,1.65585216]
[1633111614126,4.17768904,3272.4,3272.3,1.65585216]
[1633111615128,4.36168904,3272.4,3272.3,1.65585216]
[1633111615327,10.56168904,3272.4,3272.3,1.65585216]
[1633111615725,10.56168904,3272.4,3272.3,1.453]
[1633111615931,10.64690389,3272.4,3272.3,1.453]
[1633111616128,4.44690389,3272.4,3272.3,1.453]
[1633111616526,1.39080989,3272.4,3272.3,1.453]
[1633111619330,5.04080989,3272.4,3272.3,1.453]
[1633111619534,4.95559504,3272.4,3272.3,1.453]
[1633111619733,1.30559504,3272.4,3272.3,1.453]
[1633111620332,4.75559504,3272.4,3272.3,1.453]
[1633111620532,1.30559504,3272.4,3272.3,1.453]
[1633111621330,1.39082238,3272.4,3272.3,1.453]
[1633111622933,5.97403238,3272.4,3272.3,1.453]
[1633111624936,5.97403238,3272.4,3272.3,1.403]
[1633111625135,5.88880504,3272.4,3272.3,1.403]
[1633111626935,5.97403252,3272.4,3272.3,1.403]
[1633111627137,0.08522748,3272.4,3272.3,2.776913]
[1633111627937,0.08522748,3272.4,3272.3,8.34035364]
[1633111628537,0.08522748,3272.4,3272.3,6.065083]